bitfinex/quotes_SOLUSD_20250403
["timestamp","ask_amount","ask_price","bid_price","bid_amount"]
[1743639510735,0.28432314,118.43,118.37,17.9078]
[1743639510940,82.1,118.42,118.33,36.6273]
[1743639511111,10.86823204,118.44,118.34,8.59236157]
[1743639511313,2.42503204,118.44,118.36,0.14216157]
[1743639511727,10.86823204,118.44,118.36,0.14216157]
[1743639512234,8.4445,118.42,118.37,17.9078]
[1743639513042,2.42503204,118.44,118.37,17.9078]
[1743639513338,2.42503204,118.44,118.37,29.568]
[1743639513535,82.38432314,118.43,118.37,39.028]
[1743639513731,82.1,118.43,118.37,39.028]
[1743639514043,2.05714678,118.56,118.48,6.57325401]
[1743639514239,1.93479681,118.63,118.54,0.64216157]
[1743639514445,1.93479681,118.63,118.59,18.79181043]
[1743639514641,1.93479681,118.63,118.58,30.86134694]
[1743639514642,1.93479681,118.63,118.58,26.0]
[1743639514940,18.64964886,118.61,118.53,8.4366]
[1743639515132,1.93479681,118.63,118.53,8.4366]
[1743639515318,1.93479681,118.63,118.51,0.14216157]
[1743639515521,1.93479681,118.63,118.53,26.0]
[1743639515717,1.93479681,118.63,118.51,18.79181043]
[1743639516444,44.79181043,118.6,118.52,8.4373]
[1743639516748,0.28432314,118.59,118.52,8.4373]
[1743639517843,0.14216157,118.59,118.52,29.5307]
[1743639518421,1.93479681,118.63,118.52,29.5307]
[1743639518623,1.93479681,118.63,118.56,18.79181043]
[1743639518839,1.93479681,118.63,118.57,9.46]
[1743639519238,1.93479681,118.63,118.6,26.0]
[1743639520138,1.93479681,118.63,118.57,9.46]
[1743639520554,0.28432314,118.62,118.58,8.4331]
[1743639521241,1.93479681,118.63,118.58,29.5159]
[1743639523222,8.42e-06,118.65,118.62,0.14216157]
[1743639523422,2.24848594,118.68,118.64,18.79181043]
[1743639523724,2.24848594,118.68,118.63,9.44]
[1743639524251,0.14216157,118.66,118.59,9.44]
[1743639524543,2.24848594,118.68,118.63,29.5034]
[1743639524750,2.24848594,118.68,118.63,8.4295]
[1743639525134,2.24848594,118.68,118.6,21.0778]
[1743639525135,0.14216157,118.67,118.61,8.4309]
[1743639525338,0.28432314,118.67,118.61,8.4309]
[1743639525734,1.21648357,118.81,118.79,0.5]
[1743639525933,1.39818184,118.89,118.77,26.5]
[1743639526251,9.80978184,118.89,118.83,4.33807218]
[1743639526431,8.413,118.87,118.83,4.33807218]
[1743639527223,155.9,118.86,118.83,4.33807218]
[1743639527425,12.58951869,118.88,118.83,4.33807218]
[1743639527641,156.4,118.87,118.83,4.33807218]
[1743639527845,167.28,118.87,118.83,4.33807218]
[1743639528230,135.9,118.86,118.83,4.33807218]
[1743639528432,26.0,118.84,118.83,4.33807218]
[1743639528827,170.3146,118.84,118.83,4.33807218]
[1743639529251,161.9,118.84,118.83,4.33807218]
[1743639529460,135.9,118.84,118.83,4.33807218]
[1743639529748,20.0,118.82,118.71,26.0]
[1743639529951,135.9,118.81,118.72,30.0]
[1743639530124,135.9,118.81,118.7,21.0605]
[1743639530125,26.0,118.78,118.69,8.4253]
[1743639530330,155.9,118.8,118.68,19.7658]
[1743639530544,26.0,118.76,118.64,40.8396]
[1743639530859,135.9,118.78,118.69,26.0]
[1743639531173,135.9,118.8,118.69,26.0]
[1743639531326,135.9,118.8,118.69,37.32]
[1743639531849,135.9,118.8,118.73,26.0]
[1743639532453,135.9,118.8,118.73,34.4223]
[1743639532657,135.9,118.8,118.73,26.0]
[1743639533075,135.9,118.8,118.72,8.423]
[1743639533243,135.9,118.83,118.72,8.423]
[1743639533442,144.3447,118.84,118.72,8.423]
[1743639533642,26.0,118.81,118.72,8.423]
[1743639533866,26.0,118.77,118.7,30.0]
[1743639534064,26.0,118.77,118.68,8.4258]
[1743639534267,8.4196,118.78,118.68,38.4258]
[1743639535468,28.4196,118.78,118.68,30.0]
[1743639535646,135.9,118.77,118.68,30.0]
[1743639535851,154.833972,118.76,118.68,30.0]
[1743639536467,136.18432314,118.76,118.68,38.4258]
[1743639536670,136.18432314,118.76,118.68,8.4258]
[1743639536870,144.318,118.8,118.69,0.14216157]
[1743639537173,8.418,118.8,118.69,18.79181043]
[1743639537346,8.4167,118.81,118.7,8.4245]
[1743639537551,0.28432314,118.8,118.7,8.4245]
[1743639537748,8.4167,118.81,118.7,8.4245]
[1743639538365,0.14216157,118.81,118.73,26.0]
[1743639538573,90.5163,118.82,118.73,26.0]
[1743639539070,0.28432314,118.77,118.67,19.5667]
[1743639539278,136.18432314,118.77,118.69,30.0]
[1743639539473,144.60442314,118.77,118.69,38.425]
[1743639539844,135.9,118.77,118.69,38.425]
[1743639540066,0.14216157,118.76,118.69,38.425]
[1743639540269,147.16216157,118.76,118.69,30.0]
[1743639540446,0.14216157,118.75,118.69,30.0]
[1743639540864,0.28432314,118.73,118.69,30.0]
[1743639541047,0.28432314,118.71,118.62,11.12]
[1743639541246,136.18432314,118.71,118.64,30.0]
[1743639541473,0.28432314,118.69,118.64,30.0]
[1743639541966,0.28432314,118.69,118.63,0.063]
[1743639543370,0.28432314,118.67,118.63,0.063]
[1743639543550,0.28432314,118.65,118.63,0.063]
[1743639544469,8.4268,118.67,118.63,0.063]
[1743639545481,0.28432314,118.67,118.63,0.063]
[1743639546040,136.18432314,118.67,118.63,0.063]
[1743639546241,29.491,118.68,118.63,0.063]
[1743639546242,8.426,118.68,118.63,0.063]
[1743639546458,8.4255,118.69,118.63,0.063]
[1743639547076,0.14216157,118.68,118.63,0.063]
[1743639547380,0.28432314,118.68,118.63,0.063]
[1743639547593,0.28432314,118.66,118.63,0.063]
[1743639547776,8.4267,118.67,118.63,0.063]
[1743639548792,8.4245,118.7,118.63,0.063]
[1743639548998,0.28432314,118.69,118.63,0.063]
[1743639549492,8.4245,118.7,118.63,0.063]
[1743639549681,0.28432314,118.69,118.63,0.063]
[1743639550076,20.0,118.72,118.63,26.063]
[1743639550277,8.421,118.75,118.65,18.79181043]
[1743639550578,0.28432314,118.74,118.64,10.86]
[1743639550773,8.421,118.75,118.64,10.86]
[1743639550971,26.28432314,118.71,118.64,10.86]
[1743639551294,26.28432314,118.71,118.63,0.063]
[1743639551666,8.4241,118.71,118.63,0.063]
[1743639552272,0.14216157,118.71,118.63,0.063]
[1743639552591,144.321,118.76,118.65,26.0]
[1743639552804,144.321,118.76,118.66,10.86]
[1743639553597,144.321,118.76,118.67,8.4267]
[1743639553775,0.14216157,118.75,118.67,8.4267]
[1743639553976,0.14216157,118.75,118.67,29.4935]
[1743639554173,4.9328,118.78,118.7,26.0]
[1743639554382,8.55916157,118.81,118.71,10.82]
[1743639554590,8.417,118.81,118.71,10.82]
[1743639554791,144.3163,118.82,118.71,10.82]
[1743639554978,26.0,118.78,118.71,10.82]
[1743639555177,0.14216157,118.76,118.67,29.4935]
[1743639555388,0.28432314,118.76,118.67,29.4935]
[1743639555596,0.42648471,118.74,118.67,8.4267]
[1743639555896,135.9,118.73,118.64,8.4288]
[1743639556109,135.9,118.73,118.66,30.0]
[1743639556903,8.4198,118.77,118.67,18.79181043]
[1743639557085,8.4198,118.77,118.68,10.8]
[1743639557688,8.4198,118.77,118.69,8.4253]
[1743639557889,0.28432314,118.76,118.69,8.4253]
[1743639558076,8.4198,118.77,118.69,8.4253]
[1743639558393,0.28432314,118.76,118.69,8.4253]
[1743639558591,0.28432314,118.76,118.69,29.4885]
[1743639559100,8.4198,118.77,118.69,29.4885]
[1743639559480,8.4182,118.79,118.69,29.4885]
[1743639559775,29.4612,118.8,118.69,29.4885]
[1743639560670,8.4175,118.8,118.69,29.4885]
[1743639560884,0.14216157,118.79,118.69,29.4885]
[1743639561071,0.28432314,118.79,118.69,29.4885]
[1743639561706,8.70322314,118.79,118.69,29.4885]
[1743639562389,18.7111,118.81,118.7,18.79181043]
[1743639562602,0.28432314,118.8,118.7,18.79181043]
[1743639562903,0.14216157,118.8,118.7,18.79181043]
[1743639563293,0.14216157,118.8,118.69,71.615]
[1743639563614,0.28432314,118.8,118.69,71.615]
[1743639563793,0.28432314,118.78,118.69,71.615]
[1743639563992,0.28432314,118.78,118.69,29.4885]
[1743639564317,136.18432314,118.78,118.69,8.4253]
[1743639565208,136.18432314,118.78,118.69,29.4885]
[1743639566010,8.4175,118.8,118.69,21.0632]
[1743639566180,8.4175,118.8,118.7,18.64964886]
[1743639566610,8.4175,118.8,118.69,21.20536157]
[1743639566778,0.28432314,118.79,118.7,0.063]
[1743639567305,0.14216157,118.79,118.7,0.063]
[1743639567482,0.28432314,118.79,118.7,0.063]
[1743639567981,0.28432314,118.77,118.7,0.063]
[1743639568591,0.28432314,118.78,118.7,0.063]
[1743639569412,135.9,118.79,118.7,0.063]
[1743639569715,8.4183,118.79,118.7,0.063]
[1743639570208,8.4196,118.77,118.7,0.063]
[1743639571214,0.28432314,118.76,118.7,0.063]
[1743639571397,154.97613357,118.76,118.7,0.063]
[1743639571593,0.28432314,118.74,118.7,0.063]
[1743639571785,136.18432314,118.74,118.7,0.063]
[1743639571990,0.28432314,118.74,118.7,0.063]
[1743639572316,144.3213,118.75,118.7,0.063]
[1743639572617,8.4182,118.79,118.7,0.063]
[1743639572917,0.14216157,118.78,118.7,0.063]
[1743639573087,8.4182,118.79,118.7,0.063]
[1743639573616,8.4182,118.79,118.71,26.0]
[1743639573791,8.4178,118.8,118.71,26.0]
[1743639574213,0.03,118.83,118.74,71.5849]
[1743639574416,0.03,118.83,118.75,10.54216157]
[1743639574590,0.03,118.83,118.76,18.64964886]
[1743639574783,0.03,118.83,118.79,26.0]
[1743639575012,0.03,118.83,118.8,10.4]
[1743639575813,0.03,118.83,118.76,12.88214048]
[1743639576113,0.28432314,118.81,118.76,12.88214048]
[1743639576412,0.28432314,118.82,118.76,12.88214048]
[1743639576723,8.70032314,118.82,118.75,18.821]
[1743639577208,29.74052314,118.82,118.75,18.8208]
[1743639577419,8.70032314,118.82,118.75,18.8208]
[1743639577723,29.74052314,118.82,118.75,10.4]
[1743639577918,0.28432314,118.78,118.72,10.38]
[1743639578089,0.28432314,118.8,118.72,10.38]
[1743639578290,0.28432314,118.77,118.72,10.38]
[1743639579717,8.4182,118.79,118.72,18.8031]
[1743639579904,23.8912,118.8,118.72,18.8031]
[1743639580117,13.3391,118.8,118.72,39.861]
[1743639580289,21.0413,118.82,118.72,39.861]
[1743639580495,8.416,118.82,118.72,39.861]
[1743639581599,8.4175,118.8,118.72,39.861]
[1743639582088,0.28432314,118.82,118.72,39.861]
[1743639583101,8.70062314,118.82,118.72,39.861]
[1743639584921,8.70062314,118.82,118.72,81.9769]
[1743639585094,8.70062314,118.82,118.72,39.861]
[1743639586231,8.55846157,118.82,118.72,81.9769]
[1743639586518,0.28432314,118.82,118.72,81.9769]
[1743639586715,0.14216157,118.82,118.72,81.9769]
[1743639587094,0.03,118.83,118.73,0.14216157]
[1743639587324,0.03,118.83,118.73,18.79181043]
[1743639587495,0.03,118.83,118.76,26.0]
[1743639587694,0.03,118.83,118.77,10.16]
[1743639587998,0.03,118.83,118.77,19.9985]
[1743639588198,0.03,118.83,118.78,18.79181043]
[1743639588911,0.03,118.83,118.78,29.4662]
[1743639590022,0.03,118.83,118.79,18.79181043]
[1743639590199,0.03,118.83,118.78,71.5608]
[1743639590609,0.03,118.83,118.78,29.4662]
[1743639591021,0.03,118.83,118.8,8.4175]
[1743639591530,0.03,118.83,118.8,29.4612]
[1743639592221,0.03,118.83,118.78,8.4189]
[1743639593225,0.03,118.83,118.78,18.4589]
[1743639593414,0.03,118.83,118.78,39.5062]
[1743639594716,0.03,118.83,118.78,18.4589]
[1743639595926,0.03,118.83,118.78,18.3989]
[1743639596506,0.03,118.83,118.76,9.96]
[1743639597633,0.03,118.83,118.77,29.4686]
[1743639599634,8.4453,118.83,118.77,29.4686]
[1743639599808,0.03,118.83,118.77,29.4686]
[1743639600413,0.14216157,118.81,118.71,12.88214048]
[1743639600642,0.28432314,118.79,118.71,21.30584048]
[1743639601334,135.9,118.8,118.71,42.36554048]
[1743639601634,10.7893,118.83,118.72,0.063]
[1743639601814,0.03,118.83,118.76,26.0]
[1743639603035,0.17216157,118.83,118.76,26.0]
[1743639603234,0.31432314,118.83,118.75,12.88214048]
[1743639603617,18.61002314,118.83,118.75,21.30254048]
[1743639603812,0.31432314,118.83,118.75,8.4204]
[1743639604132,0.03,118.83,118.76,26.0]
[1743639604650,8.4455,118.83,118.75,29.473]
[1743639604932,0.03,118.83,118.76,26.0]
[1743639605131,0.03,118.83,118.75,29.473]
[1743639605348,0.28432314,118.82,118.75,29.473]
[1743639605528,0.28432314,118.82,118.75,8.4204]
[1743639605838,0.28432314,118.82,118.74,29.4761]
[1743639606440,162.18432314,118.82,118.74,8.4217]
[1743639606735,170.60072314,118.82,118.74,29.4761]
[1743639607134,0.03,118.83,118.75,0.14216157]
[1743639607316,0.03,118.83,118.75,18.64964886]
[1743639607517,0.03,118.83,118.76,0.14216157]
[1743639607710,0.03,118.83,118.78,29.4662]
[1743639610017,0.03,118.83,118.78,8.4189]
[1743639610410,0.03,118.83,118.78,29.4662]
[1743639611264,0.03,118.83,118.79,0.14216157]
[1743639611417,0.03,118.83,118.78,29.4662]
[1743639611947,0.03,118.83,118.75,29.4736]
[1743639612639,0.31432314,118.83,118.75,8.421]
[1743639613328,0.31432314,118.83,118.75,29.4736]
[1743639613640,29.16613357,118.83,118.75,8.421]
[1743639613938,29.16613357,118.83,118.73,8.4224]
[1743639613939,0.28432314,118.81,118.73,8.4224]
[1743639614146,8.4454,118.83,118.73,29.4785]
[1743639614437,0.03,118.83,118.74,18.79181043]
[1743639614623,0.03,118.83,118.75,10.04]
[1743639614821,0.03,118.83,118.77,0.063]
[1743639617940,0.03,118.83,118.77,18.85481043]
[1743639618255,0.03,118.83,118.78,29.4662]
[1743639618631,0.03,118.83,118.78,8.4189]
[1743639619644,0.31432314,118.83,118.77,0.063]
[1743639620922,0.28432314,118.81,118.77,0.063]
[1743639621128,0.28432314,118.82,118.77,0.063]
[1743639621536,8.4182,118.79,118.77,0.063]
[1743639622045,16.04872314,118.78,118.77,0.063]
[1743639622425,0.28432314,118.79,118.77,0.063]
[1743639622645,0.14216157,118.8,118.77,0.063]
[1743639623248,15.7644,118.82,118.77,0.063]
[1743639623552,13.394,118.82,118.77,0.063]
[1743639623722,13.3941,118.82,118.77,0.063]
[1743639624363,8.58786157,118.83,118.77,0.063]
[1743639624526,0.03,118.83,118.77,0.063]
[1743639624846,0.03,118.83,118.78,35.88]
[1743639625953,0.03,118.83,118.78,44.2985]
[1743639626274,0.03,118.83,118.78,57.41563151]
[1743639626729,0.03,118.83,118.78,78.46293151]
[1743639626929,0.03,118.83,118.78,65.3458]
[1743639627832,0.03,118.83,118.82,26.0]
[1743639628724,9.80948184,118.89,118.81,13.11713151]
[1743639629152,0.28432314,118.88,118.81,13.11713151]
[1743639629556,154.97613357,118.88,118.81,13.11713151]
[1743639629855,1.68524882,118.94,118.92,10.4191]
[1743639630023,0.87896593,118.97,118.93,10.26]
[1743639630953,0.87896593,118.97,118.9,4.11906433]
[1743639631263,0.87896593,118.97,118.9,10.3]
[1743639631755,0.87896593,118.97,118.91,8.4097]
[1743639632555,0.87896593,118.97,118.9,18.7102]
[1743639633428,0.87896593,118.97,118.93,26.0]
[1743639633839,0.87896593,118.97,118.94,8.4076]
[1743639635251,0.87896593,118.97,118.92,8.409]
[1743639635836,0.87896593,118.97,118.91,8.4097]
[1743639636143,0.87896593,118.97,118.91,29.434]
[1743639636448,0.87896593,118.97,118.91,8.4097]
[1743639636655,0.87896593,118.97,118.91,29.434]
[1743639637661,0.87896593,118.97,118.91,39.674]
[1743639637835,0.87896593,118.97,118.91,18.6497]
[1743639638653,0.87896593,118.97,118.91,39.674]
[1743639639160,0.90896593,118.97,118.91,39.674]
[1743639639725,0.90896593,118.97,118.91,18.6497]
[1743639640032,0.90896593,118.97,118.91,39.674]
[1743639641734,0.90896593,118.97,118.92,18.64964886]
[1743639641942,0.90896593,118.97,118.93,29.429]
[1743639643847,0.90896593,118.97,118.92,8.4087]
[1743639644048,0.90896593,118.97,118.91,21.0239]
[1743639648162,0.90896593,118.97,118.91,29.4336]
[1743639648460,0.90896593,118.97,118.91,71.4822]
[1743639649957,0.90896593,118.97,118.96,26.0]
[1743639649958,6.593e-05,118.97,118.96,26.0]
[1743639650256,6.593e-05,118.97,118.96,18.4261]
[1743639653340,1.25758031,118.98,118.96,18.4261]
[1743639653341,1.23764624,118.98,118.96,18.4261]
[1743639655240,1.05899647,119.0,118.96,81.4724]
[1743639655535,1.05899647,119.0,118.96,39.4415]
[1743639657557,1.05899647,119.0,118.96,8.4061]
[1743639657867,1.05899647,119.0,118.96,29.4215]
[1743639658074,1.05899647,119.0,118.96,8.4061]
[1743639658377,1.05899647,119.0,118.96,29.4215]
[1743639658771,1.05899647,119.0,118.94,29.4266]
[1743639660073,0.28432314,118.99,118.94,8.4076]
[1743639660273,0.42648471,118.99,118.94,8.4076]
[1743639660471,0.42648471,118.99,118.91,0.063]
[1743639660472,0.42648471,118.97,118.91,0.063]
[1743639661174,8.83248471,118.97,118.91,0.063]
[1743639663176,39.72618471,118.97,118.91,0.063]
[1743639663882,0.28432314,118.95,118.91,0.063]
[1743639664874,0.42648471,118.95,118.91,0.063]
[1743639665070,8.83358471,118.95,118.91,0.063]
[1743639665279,0.42648471,118.95,118.91,0.063]
[1743639665671,144.73338471,118.95,118.91,0.063]
[1743639666947,0.28432314,118.93,118.91,0.063]
[1743639667372,0.42648471,118.93,118.91,0.063]
[1743639668580,8.83528471,118.93,118.91,0.063]
[1743639669271,8.4088,118.93,118.91,0.063]
[1743639669968,0.42648471,118.92,118.91,0.063]
[1743639670358,8.4088,118.93,118.91,0.063]
[1743639670557,8.69332314,118.92,118.91,0.063]
[1743639670766,8.83548471,118.92,118.91,0.063]
[1743639671481,0.42648471,118.92,118.91,0.063]
[1743639671682,0.28432314,118.92,118.91,0.063]
[1743639671883,8.4086,118.93,118.91,0.063]
[1743639672185,0.42648471,118.92,118.91,0.063]
[1743639672391,8.4086,118.93,118.91,0.063]
[1743639672681,0.14216157,118.93,118.91,0.063]
[1743639672883,0.42648471,118.93,118.91,0.063]
[1743639673266,19.5943,118.94,118.91,0.063]
[1743639673462,28.0019,118.94,118.91,0.063]
[1743639673682,0.14216157,118.93,118.91,0.063]
[1743639673979,0.14216157,118.96,118.91,0.063]
[1743639674156,10.4254,118.97,118.91,0.063]
[1743639674358,0.14216157,118.97,118.91,0.063]
[1743639674875,0.17216157,118.99,118.91,0.063]
[1743639675083,0.03,118.99,118.92,26.0]
[1743639675290,0.03,118.99,118.93,9.64]
[1743639675587,1.08899647,119.0,118.97,26.0]
[1743639675791,1.56669094,119.01,119.0,26.0]
[1743639675792,8.741e-05,119.01,119.0,26.0]
[1743639676084,8.741e-05,119.01,118.98,9.68]
[1743639676085,1.1184012,119.02,118.98,9.68]
[1743639676585,1.1184012,119.02,118.99,29.4141]
[1743639677181,1.2e-06,119.02,119.01,26.0]
[1743639678368,1.2e-06,119.02,118.99,33.66253252]
[1743639679490,1.2e-06,119.02,118.99,29.4141]
[1743639680071,1.2e-06,119.02,118.99,33.55171465]
[1743639680779,1.2e-06,119.02,118.99,8.404]
[1743639682774,154.69181163,119.02,118.96,8.4061]
[1743639682978,0.28432434,119.02,118.96,8.4061]
[1743639683281,0.28432434,119.02,118.96,29.4215]
[1743639683282,1.2e-06,119.02,118.96,29.4215]
[1743639684387,0.28432434,119.02,118.96,8.4061]
[1743639684587,0.28432434,119.02,118.92,29.4311]
[1743639684588,0.42648591,119.02,118.92,29.4311]
[1743639684890,8.68862314,118.99,118.93,30.0]
[1743639685882,0.14216157,118.98,118.92,8.409]
[1743639686682,8.4054,118.97,118.91,8.4727]
[1743639687571,0.42648471,118.96,118.91,0.063]
[1743639687791,8.54476157,119.01,118.92,9.72]
[1743639687997,90.5322012,119.02,118.92,9.72]
[1743639688198,0.0300012,119.02,118.95,26.0]
[1743639688385,0.0300012,119.02,118.97,26.0]
[1743639688592,0.0300012,119.02,119.01,26.0]
[1743639688788,0.0300012,119.02,119.01,34.4026]
[1743639689602,0.0300012,119.02,119.01,8.4026]
[1743639690792,0.0300012,119.02,118.99,29.4132]
[1743639691696,1.2e-06,119.02,119.01,26.0]
[1743639692101,1.2e-06,119.02,118.99,29.4132]
[1743639692492,1.66134902,119.03,118.99,29.4132]
[1743639693009,1.66134902,119.03,118.99,71.4335]
[1743639693710,4.902e-05,119.03,119.02,26.0]
[1743639694395,4.902e-05,119.03,118.99,113.4538]
[1743639695003,4.902e-05,119.03,119.01,8.4026]
[1743639695983,9.916e-05,119.04,119.03,26.0]
[1743639696203,5.61e-06,119.07,119.03,37.32007415]
[1743639696608,5.61e-06,119.07,119.03,35.64]
[1743639697109,5.61e-06,119.07,119.04,39.0418]
[1743639698300,5.61e-06,119.07,119.06,26.0]
[1743639698704,1.06114553,119.13,119.09,26.0]
[1743639698910,1.06114553,119.13,119.11,8.3956]
[1743639700314,8.601e-05,119.14,119.13,26.0]
[1743639700519,0.91675229,119.15,119.11,29.3846]
[1743639700520,3.83e-05,119.15,119.11,29.3846]
[1743639700817,3.83e-05,119.15,119.11,8.3956]
[1743639701017,0.28432314,119.14,119.08,8.3977]
[1743639701193,0.28432314,119.14,119.09,30.0]
[1743639701396,9.9100383,119.15,119.09,30.0]
[1743639701616,3.83e-05,119.15,119.09,30.0]
[1743639702916,3.83e-05,119.15,119.1,29.387]
[1743639703212,3.83e-05,119.15,119.11,9.6]
[1743639705106,3.83e-05,119.15,119.12,29.382]
[1743639705615,2.14138188,119.16,119.13,1.67859156]
[1743639705616,2.12142018,119.16,119.13,1.67859156]
[1743639705801,2.12142018,119.16,119.12,29.382]
[1743639706193,2.12142018,119.16,119.12,71.3564]
[1743639706897,2.12142018,119.16,119.12,29.382]
[1743639707297,2.12142018,119.16,119.13,9.56]
[1743639709010,2.12142018,119.16,119.14,8.3934]
[1743639710910,1.143e-05,119.16,119.14,10.0719761]
[1743639711113,2.14457189,119.18,119.16,8.392]
[1743639713018,2.14457189,119.18,119.12,0.063]
[1743639713221,2.14457189,119.18,119.13,9.48]
[1743639713222,10.53527189,119.18,119.13,9.48]
[1743639713428,0.28432314,119.17,119.12,30.063]
[1743639713721,2.14457189,119.18,119.12,0.063]
[1743639714823,2.14457189,119.18,119.14,26.0]
[1743639715003,2.14457189,119.18,119.16,8.392]
[1743639717408,7.189e-05,119.18,119.17,0.14216157]
[1743639717617,1.36065524,119.23,119.19,26.0]
[1743639717803,1.36065524,119.23,119.2,9.56]
[1743639718612,3.1e-05,119.24,119.2,11.23715279]
[1743639718912,3.1e-05,119.24,119.2,15.6488626]
[1743639719118,3.1e-05,119.24,119.2,9.56]
[1743639719322,3.1e-05,119.24,119.21,29.3598]
[1743639722107,3.957e-05,119.26,119.21,71.3025]
[1743639722328,3.957e-05,119.26,119.22,18.64964886]
[1743639722642,4.903e-05,119.27,119.25,26.0]
[1743639722936,3.334e-05,119.29,119.26,9.46]
[1743639723238,3.334e-05,119.29,119.22,327.12]
[1743639723405,3.334e-05,119.29,119.26,8.385]
[1743639724022,146.2166,119.28,119.2,7.24765766]
[1743639724219,10.3166,119.28,119.19,9.48]
[1743639724428,10.3166,119.28,119.19,13.5708992]
[1743639725214,10.3166,119.28,119.21,20.9713]
[1743639725517,3.334e-05,119.29,119.22,18.64964886]
[1743639725716,3.334e-05,119.29,119.21,20.9713]
[1743639726027,0.28435648,119.29,119.21,20.9713]
[1743639726236,26.0,119.26,119.2,8.3892]
[1743639726535,0.14216157,119.28,119.2,17.8492]
[1743639726746,0.14219491,119.29,119.2,17.8492]
[1743639726916,0.14219491,119.29,119.2,38.8223]
[1743639727111,0.28435648,119.29,119.2,38.8223]
[1743639727313,170.70941805,119.29,119.2,17.8492]
[1743639727550,0.28432314,119.27,119.16,9.46]
[1743639727717,0.28432314,119.27,119.16,39.46]
[1743639728021,0.28432314,119.24,119.16,39.46]
[1743639728234,10.2641,119.25,119.16,39.46]
[1743639728614,10.2641,119.25,119.17,29.3697]
[1743639729236,0.14216157,119.27,119.17,71.3265]
[1743639729538,3.334e-05,119.29,119.21,26.0]
[1743639729742,3.334e-05,119.29,119.22,9.46]
[1743639729743,0.14219491,119.29,119.22,9.46]
[1743639729919,0.28435648,119.29,119.22,9.46]
[1743639730114,8.80961805,119.29,119.22,9.46]
[1743639730515,29.76691805,119.29,119.23,8.3871]
[1743639731223,8.80961805,119.29,119.23,8.3871]
[1743639731539,3.334e-05,119.29,119.23,8.3871]
[1743639732048,0.28432314,119.28,119.23,8.3871]
[1743639732421,0.28435648,119.29,119.23,29.3549]
[1743639732620,3.334e-05,119.29,119.23,29.3549]
[1743639732940,0.14219491,119.29,119.23,29.3549]
[1743639733632,0.28435648,119.29,119.23,29.3549]
[1743639733939,0.28435648,119.29,119.23,8.3871]
[1743639734124,0.42651805,119.29,119.23,8.3871]
[1743639734627,0.42651805,119.29,119.2,9.46]
[1743639734948,0.42648471,119.27,119.2,17.8492]
[1743639735738,8.385,119.26,119.2,38.8223]
[1743639736039,8.66882314,119.27,119.2,38.8223]
[1743639736242,8.3839,119.28,119.2,38.8223]
[1743639736544,3.334e-05,119.29,119.2,80.7686]
[1743639737034,0.28435648,119.29,119.2,38.8223]
[1743639737251,3.334e-05,119.29,119.2,38.8223]
[1743639737619,3.334e-05,119.29,119.2,80.8316]
[1743639737935,0.03003334,119.29,119.22,9.8151]
[1743639738714,3.334e-05,119.29,119.22,9.8151]
[1743639738946,0.28432314,119.28,119.21,9.46]
[1743639739832,0.28432314,119.28,119.22,8.3878]
[1743639740225,8.66812314,119.28,119.22,8.3878]
[1743639740722,8.66812314,119.28,119.21,17.8482]
[1743639741367,8.38313334,119.29,119.21,38.8195]
[1743639741626,8.38293334,119.29,119.21,38.8195]
[1743639741839,3.334e-05,119.29,119.21,38.8195]
[1743639742438,3.334e-05,119.29,119.21,80.7622]
[1743639742627,0.28435648,119.29,119.21,80.7622]
[1743639742830,3.334e-05,119.29,119.21,80.7622]
[1743639743154,1.0040202,119.31,119.26,26.0]